bitfinex-derivatives/quotes_BNBF0:USTF0_20250331
["timestamp","ask_amount","ask_price","bid_price","bid_amount"]
[1743420020974,0.654,593.23,592.7,0.33743883]
[1743420020975,0.654,593.23,592.73,0.26995089]
[1743420021180,0.654,593.23,592.71,0.26995089]
[1743420021479,0.654,593.23,592.7,0.33743883]
[1743420021680,0.654,593.23,592.71,0.26988363]
[1743420023482,0.654,593.23,592.7,0.33743883]
[1743420023782,0.654,593.23,592.71,0.26982566]
[1743420027979,0.747,593.22,592.71,0.26982566]
[1743420032287,0.706,593.21,592.71,0.26982566]
[1743420032585,1.573,593.21,592.71,0.26982566]
[1743420035992,1.573,593.21,592.7,0.33743883]
[1743420036185,1.573,593.21,592.71,0.27026455]
[1743420041087,0.946,593.2,592.71,0.27026455]
[1743420043895,1.23363717,593.19,592.71,0.27026455]
[1743420044294,6.96236569,593.18,592.7,0.33743883]
[1743420044490,7.468264,593.17,592.7,0.33743883]
[1743420044792,7.468264,593.16,592.7,0.33743883]
[1743420044993,7.468264,593.15,592.7,0.33743883]
[1743420045208,1.67657148,593.13,592.15,2.5552563]
[1743420045496,7.468264,593.12,592.16,0.27123995]
[1743420045696,1.67352847,593.16,592.16,0.27123995]
[1743420045697,7.468264,593.11,592.16,0.27123995]
[1743420045895,5.49771351,593.1,592.16,0.6089865]
[1743420046091,4.82344354,593.09,592.17,0.6089808]
[1743420046290,4.82344354,593.08,592.18,0.27123995]
[1743420046490,2.41849835,593.07,592.18,0.27123995]
[1743420046795,2.41849835,593.06,592.18,0.27123995]
[1743420046990,5.62699868,593.05,592.18,0.27123995]
[1743420047190,1.50309074,593.04,592.18,0.27123995]
[1743420047495,1.50095911,593.03,592.18,0.27123995]
[1743420047689,1.50095911,593.02,592.18,0.27123995]
[1743420047893,1.50095911,593.01,592.18,0.27123995]
[1743420048195,1.50095911,593.0,592.18,0.27123995]
[1743420048396,1.23363717,593.01,592.18,0.27123995]
[1743420048696,2.73391666,593.0,592.18,0.27123995]
[1743420048996,1.23363717,592.99,592.18,0.27123995]
[1743420049798,1.23363717,592.98,592.18,0.27123995]
[1743420050596,1.23363717,592.97,592.18,0.27123995]
[1743420051292,1.23363717,592.96,592.18,0.27123995]
[1743420051893,1.49889191,592.95,592.18,0.27123995]
[1743420052095,1.49889191,592.94,592.18,0.27123995]
[1743420052296,2.7289051,592.93,592.18,0.27123995]
[1743420052495,1.23054765,592.93,592.18,0.27123995]
[1743420052697,1.4983559,592.92,592.18,0.27123995]
[1743420052893,1.23054765,592.93,592.18,0.27123995]
[1743420053099,1.23054765,592.91,592.18,0.27123995]
[1743420053698,1.96730108,593.05,592.18,0.27123995]
[1743420053898,1.49786068,593.04,592.18,0.27123995]
[1743420054094,4.80662883,593.03,592.18,0.27123995]
[1743420054300,4.80662883,593.02,592.19,0.33772944]
[1743420054500,4.80662883,593.01,592.2,0.27123995]
[1743420054703,5.60649159,593.0,592.21,0.33771803]
[1743420054897,1.49781412,592.99,592.22,0.27123995]
[1743420055100,1.49781412,592.98,592.22,0.27123995]
[1743420055296,1.49749796,592.97,592.22,0.60895228]
[1743420055601,1.49749796,592.96,592.23,0.27123995]
[1743420055803,1.49727049,592.95,592.23,0.27123995]
[1743420055998,1.49727049,592.94,592.23,0.27123995]
[1743420056197,2.72679562,592.93,592.23,0.27123995]
[1743420056397,1.22952513,592.93,592.23,0.27123995]
[1743420056697,1.22952513,592.92,592.23,0.27123995]
[1743420057899,1.22952513,592.91,592.23,0.27123995]
[1743420058300,1.22952513,592.91,592.24,0.33770093]
[1743420058500,5.20152899,593.18,592.25,0.27123995]
[1743420058711,6.9351139,593.17,592.25,0.27123995]
[1743420058898,6.26074365,593.16,592.25,0.27123995]
[1743420059100,4.80237066,593.15,592.26,0.33768952]
[1743420059397,4.80237066,593.14,592.27,0.27123995]
[1743420059597,4.80237066,593.13,592.27,0.27123995]
[1743420059798,4.80237066,593.12,592.27,0.27123995]
[1743420059999,4.80237066,593.11,592.27,0.27123995]
[1743420060199,2.40794089,593.1,592.27,0.27123995]
[1743420060401,1.49651861,593.09,592.28,0.33767812]
[1743420060598,1.49651861,593.08,592.29,0.27123995]
[1743420060804,1.49651861,593.07,592.28,0.33767812]
[1743420061005,1.49651861,593.06,592.29,0.27095566]
[1743420061207,1.49651861,593.05,592.3,0.33766672]
[1743420061507,1.22843384,593.06,592.31,0.27095566]
[1743420061707,1.22843384,593.06,592.32,0.33765532]
[1743420062002,1.89243384,593.05,592.33,0.27095566]
[1743420062203,1.89243384,593.05,592.34,0.33764392]
[1743420062408,1.89243384,593.05,592.35,0.27095566]
[1743420062607,0.664,593.05,592.36,0.33763252]
[1743420062804,0.664,593.05,592.37,0.27095566]
[1743420063101,0.664,593.05,592.38,0.33762112]
[1743420063308,0.664,593.05,592.39,0.27095566]
[1743420063508,0.664,593.05,592.4,0.33760972]
[1743420063702,0.664,593.05,592.41,0.27095566]
[1743420063906,0.664,593.05,592.42,0.33759832]
[1743420064102,0.664,593.05,592.43,0.27076363]
[1743420065402,0.664,593.05,592.44,0.33758692]
[1743420065601,0.664,593.05,592.45,0.27076363]
[1743420065906,0.732,593.04,592.45,0.27076363]
[1743420066308,0.732,593.04,592.46,0.33757553]
[1743420066705,0.732,593.04,592.47,0.27076363]
[1743420066903,0.732,593.04,592.48,0.33756413]
[1743420067104,0.732,593.04,592.49,0.27076363]
[1743420067304,0.732,593.04,592.5,0.33755274]
[1743420067608,0.732,593.04,592.51,0.27087327]
[1743420067903,0.732,593.04,592.51,0.60842031]
[1743420068107,0.732,593.04,592.52,0.27087327]
[1743420069408,0.732,593.04,592.51,0.33754704]
[1743420069709,0.732,593.04,592.52,0.27085921]
[1743420069908,0.732,593.04,592.53,0.33753565]
[1743420070110,0.732,593.04,592.54,0.27085921]
[1743420071807,0.732,593.04,592.53,0.33753565]
[1743420072412,0.732,593.04,592.54,0.27099633]
[1743420073811,0.876,593.03,592.54,0.27099633]
[1743420074815,0.876,593.03,592.53,0.33753565]
[1743420075119,0.876,593.03,592.54,0.27101959]
[1743420075317,0.876,593.03,592.55,0.33752425]
[1743420075618,0.876,593.03,592.56,0.27101959]
[1743420076813,0.876,593.03,592.57,0.27091273]
[1743420077013,0.876,593.03,592.56,0.27091273]
[1743420077218,0.876,593.03,592.55,0.33752425]
[1743420080622,0.876,593.03,592.56,0.271104]
[1743420081623,0.705,593.02,592.56,0.271104]
[1743420082225,0.705,593.02,592.55,0.33752425]
[1743420082523,0.705,593.02,592.56,0.27122423]
[1743420083026,1.22937145,593.01,592.56,0.27122423]
[1743420083930,1.22937145,593.0,592.56,0.27122423]
[1743420084625,0.705,593.02,592.56,0.27122423]
[1743420085725,0.705,593.02,592.55,0.33752425]
[1743420085926,0.705,593.02,592.56,0.27128253]
[1743420086532,0.705,593.02,592.55,0.33752425]
[1743420086726,0.705,593.02,592.56,0.27130461]
[1743420092826,0.705,593.02,592.55,0.33752425]
[1743420093027,0.705,593.02,592.56,0.27122657]
[1743420096233,0.878,593.01,592.56,0.27122657]
[1743420098434,0.878,593.01,592.57,0.27114289]
[1743420098735,0.878,593.01,592.58,0.27114289]
[1743420098935,0.878,593.01,592.55,0.33752425]
[1743420098936,0.878,593.01,592.56,0.27114289]
[1743420099132,0.878,593.01,592.57,0.27114289]
[1743420099331,0.878,593.01,592.56,0.27114289]
[1743420099527,0.878,593.01,592.57,0.27114289]
[1743420099731,0.878,593.01,592.56,0.27114289]
[1743420099928,0.878,593.01,592.58,0.27114289]
[1743420100132,0.878,593.01,592.59,0.27114289]
[1743420100334,0.878,593.01,592.56,0.27114289]
[1743420100544,0.878,593.01,592.57,0.27114289]
[1743420100728,0.878,593.01,592.56,0.27114289]
[1743420102334,0.878,593.01,592.56,0.60866145]
[1743420102534,0.878,593.01,592.57,0.60865575]
[1743420102730,0.878,593.01,592.58,0.27114289]
[1743420103529,0.878,593.01,592.57,0.33751286]
[1743420103833,0.878,593.01,592.58,0.27073823]
[1743420105436,0.878,593.01,592.57,0.33751286]
[1743420105632,0.878,593.01,592.58,0.27073235]
[1743420110241,0.754,593.0,592.58,0.27073235]
[1743420110746,0.754,593.0,592.59,0.27074095]
[1743420110946,0.754,593.0,592.58,0.27074095]
[1743420111146,0.754,593.0,592.59,0.27074095]
[1743420111440,0.754,593.0,592.58,0.27074095]
[1743420111646,0.754,593.0,592.59,0.27074095]
[1743420111846,0.754,593.0,592.58,0.27074095]
[1743420112047,0.754,593.0,592.59,0.27074095]
[1743420112241,0.754,593.0,592.58,0.27074095]
[1743420112642,0.754,593.0,592.59,0.33750147]
[1743420112842,0.754,593.0,592.6,0.27074095]
[1743420113045,0.754,593.0,592.6,0.60823673]
[1743420113348,0.838,592.99,592.61,0.27074095]
[1743420113742,0.838,592.99,592.62,0.33748439]
[1743420113946,0.838,592.99,592.63,0.27074095]
[1743420114141,0.838,592.99,592.64,0.337473]
[1743420114347,0.838,592.99,592.65,0.27068501]
[1743420114945,0.829,592.98,592.65,0.27068501]
[1743420116449,0.829,592.98,592.66,0.33746161]
[1743420116749,0.829,592.98,592.67,0.27068501]
[1743420116949,0.829,592.98,592.68,0.33745022]
[1743420117147,0.829,592.98,592.69,0.27068501]
[1743420117343,0.829,592.98,592.7,0.33743883]
[1743420117543,0.829,592.98,592.71,0.27068501]
[1743420117845,0.829,592.98,592.72,0.33742745]
[1743420118049,0.829,592.98,592.73,0.27068501]
[1743420120743,0.829,592.98,592.72,0.33742745]
[1743420121649,0.829,592.98,592.73,0.2707028]
[1743420122349,0.829,592.98,592.74,0.2707028]
[1743420122554,0.829,592.98,592.75,0.2707028]
[1743420122753,0.829,592.98,592.73,0.2707028]
[1743420123047,0.829,592.98,592.74,0.2707028]
[1743420123252,0.829,592.98,592.75,0.2707028]
[1743420123449,0.829,592.98,592.76,0.2707028]
[1743420123654,0.829,592.98,592.73,0.2707028]
[1743420123855,0.829,592.98,592.74,0.2707028]
[1743420124054,0.829,592.98,592.73,0.2707028]
[1743420124358,0.829,592.98,592.74,0.2707028]
[1743420124858,0.829,592.98,592.75,0.2707028]
[1743420125059,0.829,592.98,592.73,0.2707028]
[1743420125254,0.829,592.98,592.72,0.33742745]
[1743420125255,0.829,592.98,592.74,0.2707028]
[1743420125451,0.829,592.98,592.73,0.2707028]
[1743420125655,0.829,592.98,592.74,0.2707028]
[1743420125956,0.829,592.98,592.75,0.2707028]
[1743420126157,0.829,592.98,592.73,0.33742176]
[1743420126459,0.829,592.98,592.74,0.2705497]
[1743420126753,0.829,592.98,592.75,0.33741037]
[1743420127457,0.829,592.98,592.76,0.27045894]
[1743420127657,0.829,592.98,592.77,0.33739899]
[1743420127857,0.838,592.99,592.78,0.27045894]
[1743420128057,0.838,592.99,592.79,0.3373876]
[1743420128257,0.838,592.99,592.8,0.27045894]
[1743420128657,0.838,592.99,592.81,0.33737622]
[1743420128857,0.838,592.99,592.82,0.27045894]
[1743420129057,0.838,592.99,592.83,0.33736484]
[1743420129257,0.838,592.99,592.84,0.27045894]
[1743420132754,0.838,592.99,592.85,0.33735346]
[1743420133059,0.838,592.99,592.86,0.27045894]
[1743420133258,0.838,592.99,592.87,0.33734208]
[1743420133460,0.838,592.99,592.88,0.27045894]
[1743420133855,0.838,592.99,592.89,0.3373307]
[1743420134062,0.838,592.99,592.9,0.27045894]
[1743420135257,0.754,593.0,592.9,0.27045894]
[1743420136057,0.754,593.0,592.91,0.27045894]
[1743420136259,0.754,593.0,592.92,0.27045894]
[1743420136457,0.754,593.0,592.93,0.27045894]
[1743420136662,0.754,593.0,592.94,0.60776119]
[1743420136870,0.754,593.0,592.95,0.27045894]
[1743420137661,0.754,593.0,592.94,0.33730225]
[1743420137960,0.754,593.0,592.95,0.27005557]
[1743420138258,0.754,593.0,592.96,0.33729087]
[1743420138465,0.754,593.0,592.97,0.27005557]
[1743420138663,0.754,593.0,592.98,0.60733507]
[1743420138863,0.754,593.0,592.99,0.27005557]
[1743420143769,1.425,593.07,592.99,0.27005557]
[1743420143972,1.425,593.07,592.98,0.3372795]
[1743420144165,1.425,593.07,592.99,0.26943155]
[1743420144565,1.425,593.07,593.0,0.60669967]
[1743420144770,1.425,593.07,593.01,0.60669399]
[1743420145072,1.425,593.07,593.02,0.26943155]
[1743420145367,1.425,593.07,593.02,0.6066883]
[1743420145566,1.425,593.07,593.03,0.26943155]
[1743420145968,1.425,593.07,593.04,0.33724537]
[1743420146171,1.425,593.07,593.05,0.26943155]
[1743420146371,1.425,593.07,593.06,0.337234]
[1743420146771,1.425,593.07,593.06,0.60666555]
[1743420151072,1.425,593.07,593.06,0.337234]
[1743420151273,1.425,593.07,593.06,0.60713599]
[1743420153773,1.425,593.07,593.06,0.337234]
[1743420154468,1.425,593.07,593.06,0.60694229]
[1743420158378,1.425,593.07,593.06,0.337234]
[1743420158573,1.425,593.07,593.06,0.60690069]
[1743420160179,1.425,593.07,593.06,0.60676836]
[1743420161279,0.597,593.07,593.06,0.60676836]
[1743420162084,1.821,593.29,593.06,0.60676836]
[1743420162282,1.821,593.29,593.07,0.26953436]
[1743420162581,0.975,593.29,593.08,0.60675699]
[1743420162875,0.975,593.29,593.09,0.26953436]
[1743420163484,0.975,593.29,593.08,0.33722263]
[1743420163783,0.975,593.29,593.09,0.26965324]
[1743420166275,0.975,593.29,593.09,0.60687018]
[1743420166581,0.975,593.29,593.1,0.6068645]
[1743420166881,0.975,593.29,593.11,0.60685881]
[1743420167082,0.975,593.29,593.12,0.60685313]
[1743420167275,0.975,593.29,593.13,0.26958095]
[1743420167480,0.975,593.29,593.14,0.33718852]
[1743420167777,0.975,593.29,593.15,0.26958095]
[1743420167982,0.975,593.29,593.16,0.33717715]
[1743420168181,0.975,593.29,593.17,0.26958095]
[1743420169085,0.975,593.29,593.17,0.60675241]
[1743420169285,0.975,593.29,593.18,0.26958095]
[1743420170688,0.975,593.29,593.18,0.60674673]
[1743420170880,0.975,593.29,593.19,0.60674105]
[1743420171080,0.975,593.29,593.2,0.60673536]
[1743420171281,0.975,593.29,593.21,0.60672968]
[1743420171483,0.975,593.29,593.22,0.60672399]
[1743420171680,0.975,593.29,593.23,0.26958095]
[1743420172290,0.975,593.29,593.24,0.33713168]
[1743420172486,0.975,593.29,593.25,0.26958095]
[1743420172689,0.975,593.29,593.26,0.33712031]
[1743420172989,0.975,593.29,593.27,0.26958095]
[1743420173189,0.975,593.29,593.28,0.33710895]
[1743420173389,0.975,593.29,593.28,0.6066899]
[1743420179290,0.975,593.29,593.28,0.33710895]
[1743420179589,0.975,593.29,593.28,0.60662226]
[1743420182389,2.34,593.32,593.28,0.60654181]
[1743420182586,2.34,593.32,593.29,0.26943286]
[1743420182892,2.34,593.32,593.3,0.33709758]
[1743420183089,2.34,593.32,593.31,0.26943286]
[1743420183386,2.34,593.32,593.31,0.60652476]
[1743420187092,1.659,593.32,593.31,0.60652476]
[1743420187493,1.659,593.32,593.31,0.3370919]
[1743420187690,1.659,593.32,593.31,0.60678503]
[1743420189194,1.659,593.32,593.31,0.3370919]
[1743420189391,1.659,593.32,593.31,0.60674796]
[1743420191199,1.659,593.32,593.31,0.60675407]
[1743420192200,1.659,593.32,593.31,0.3370919]
[1743420192993,1.659,593.32,593.31,0.60687063]
[1743420196106,1.659,593.32,593.31,0.3370919]
[1743420197013,1.659,593.32,593.31,0.60676829]
[1743420197611,1.659,593.32,593.31,0.3370919]
[1743420198005,0.822,593.32,593.31,0.3370919]
[1743420198314,0.822,593.32,593.31,0.60676689]
[1743420199612,0.822,593.32,593.31,0.6068212]
[1743420200214,0.822,593.32,592.93,0.29323042]
[1743420200513,0.822,593.32,592.94,0.60703074]
[1743420200709,1.871,593.32,592.95,0.60702505]
[1743420200911,1.871,593.32,592.96,0.60701936]
[1743420201211,1.871,593.32,592.97,0.60701368]
[1743420201510,1.871,593.32,592.98,0.26972849]
[1743420205114,1.871,593.32,592.99,0.26972849]
[1743420205315,1.871,593.32,593.0,0.26972849]
[1743420205516,1.871,593.32,593.01,0.26972849]
[1743420205713,1.871,593.32,592.98,0.26972849]
[1743420205913,1.871,593.32,592.99,0.26972849]
[1743420206112,1.871,593.32,593.0,0.26972849]
[1743420206309,1.871,593.32,593.01,0.26972849]
[1743420206514,1.871,593.32,593.02,0.26972849]
[1743420206713,1.871,593.32,592.97,0.33728519]
[1743420206714,1.871,593.32,592.98,0.26972849]
[1743420206915,1.871,593.32,592.99,0.26972849]
[1743420207216,1.871,593.32,592.97,0.33728519]
[1743420207217,1.871,593.32,593.0,0.26972849]
[1743420207418,1.871,593.32,592.97,0.33728519]
[1743420207618,1.871,593.32,592.98,0.26982006]
[1743420208319,1.871,593.32,592.99,0.26980783]
[1743420208718,1.871,593.32,592.98,0.26980783]
[1743420208916,1.871,593.32,592.99,0.26980783]
[1743420209113,1.871,593.32,592.98,0.26980783]
[1743420209317,1.871,593.32,592.99,0.26980783]
[1743420209520,1.871,593.32,592.98,0.26980783]
[1743420209718,1.871,593.32,592.99,0.26980783]
[1743420209920,1.871,593.32,592.98,0.26980783]
[1743420211121,1.871,593.32,592.97,0.33728519]
[1743420211319,1.871,593.32,592.98,0.27014134]
[1743420212514,2.668,593.32,592.98,0.27014134]
[1743420213019,2.668,593.32,592.99,0.27013717]
[1743420213216,2.668,593.32,592.98,0.27013717]
[1743420213420,2.668,593.32,592.99,0.27013717]
[1743420213615,2.668,593.32,592.97,0.33728519]
[1743420213616,2.668,593.32,593.0,0.27013717]
[1743420213818,2.668,593.32,593.01,0.27013717]
[1743420214014,2.668,593.32,593.02,0.27013717]
[1743420214219,3.461,593.32,593.03,0.27013717]
[1743420214420,3.461,593.32,592.98,0.27013717]
[1743420214621,3.461,593.32,592.43,2.5552563]
[1743420214923,3.461,593.32,592.45,0.33758123]
[1743420215217,3.461,593.32,592.46,0.27023929]
[1743420215435,3.461,593.32,592.47,0.27023929]
[1743420215624,3.461,593.32,592.48,0.27023929]
[1743420216123,3.461,593.32,592.49,0.27023929]
[1743420216422,3.461,593.32,592.5,0.27023929]
[1743420216918,3.461,593.32,592.51,0.60778633]
[1743420217223,3.461,593.32,592.52,0.27023929]
[1743420217422,3.461,593.32,592.53,0.27023929]
[1743420217622,3.461,593.32,592.54,0.27023929]
[1743420217822,3.461,593.32,592.55,0.27023929]
[1743420218021,3.461,593.32,592.56,0.27023929]
[1743420218224,3.461,593.32,592.57,0.27023929]
[1743420218518,3.461,593.32,592.58,0.27023929]
[1743420218715,3.461,593.32,592.59,0.27023929]
[1743420218918,3.461,593.32,592.6,0.27023929]
[1743420219116,3.461,593.32,592.61,0.27023929]
[1743420219415,3.461,593.32,592.62,0.27023929]
[1743420219620,3.461,593.32,592.63,0.27023929]
[1743420219816,3.461,593.32,592.64,0.27023929]
[1743420220017,3.461,593.32,592.65,0.27023929]
[1743420220217,3.461,593.32,592.66,0.27023929]
[1743420220524,3.461,593.32,592.67,0.27023929]
[1743420220825,3.461,593.32,592.68,0.27023929]
[1743420221125,3.461,593.32,592.69,0.27023929]
[1743420221318,3.461,593.32,592.7,0.27023929]
[1743420221518,3.461,593.32,592.6,0.27023929]
[1743420221725,3.45467834,593.32,592.61,0.60772937]
[1743420221919,3.45467834,593.32,592.62,0.27023929]
[1743420222119,3.45467834,593.32,592.61,0.33749008]
[1743420222426,3.45467834,593.32,592.62,0.27084942]
[1743420223220,3.45467834,593.32,592.62,0.60833381]
[1743420223421,3.45467834,593.32,592.63,0.27084942]
[1743420223740,3.45467834,593.32,592.64,0.27084942]
[1743420224026,3.45467834,593.32,592.65,0.27084942]
[1743420224219,3.45467834,593.32,592.63,0.27084942]
[1743420224423,3.45467834,593.32,592.64,0.27084942]
[1743420224724,3.45467834,593.32,592.65,0.27084942]
[1743420224925,3.45467834,593.32,592.63,0.27084942]
[1743420225121,3.45467834,593.32,592.62,0.33748439]
[1743420225328,3.45467834,593.32,592.64,0.27042779]
[1743420225523,3.45467834,593.32,592.65,0.27042779]
[1743420225724,3.45467834,593.32,592.63,0.27042779]
[1743420226324,1.22543426,593.31,592.63,0.27042779]
[1743420227121,1.59,593.32,592.63,0.27042779]
[1743420229522,1.59,593.32,592.62,0.33748439]
[1743420229727,1.59,593.32,592.63,0.27045233]
[1743420229924,2.519,593.32,592.63,0.27045233]
[1743420230629,2.519,593.32,592.62,0.33748439]
[1743420230930,2.519,593.32,592.63,0.27043625]
[1743420231728,3.175,593.32,592.63,0.27043625]
[1743420234026,1.49132752,593.31,592.62,0.33748439]
[1743420234229,3.175,593.32,592.63,0.27043805]
[1743420234426,2.382,593.32,592.63,0.27043805]
[1743420234632,1.2240708,593.31,592.63,0.27043805]
[1743420235227,1.2240708,593.3,592.63,0.27043805]
[1743420236032,1.2240708,593.29,592.63,0.27043805]
[1743420236732,1.2240708,593.28,592.63,0.27043805]
[1743420237327,0.857,593.27,592.63,0.27043805]
[1743420237834,0.857,593.27,592.64,0.2704696]
[1743420238027,0.857,593.27,592.65,0.2704696]
[1743420238236,0.857,593.27,592.66,0.2704696]
[1743420238432,1.22427189,593.26,592.67,0.2704696]
[1743420238632,1.22427189,593.26,592.63,0.2704696]
[1743420238831,0.857,593.27,592.62,0.33748439]
[1743420238832,0.857,593.27,592.64,0.2704696]
[1743420239131,0.857,593.27,592.62,0.33748439]
[1743420239132,0.857,593.27,592.65,0.2704696]
[1743420239458,0.857,593.27,592.66,0.2704696]
[1743420239626,0.857,593.27,592.63,0.2704696]
[1743420239827,1.22456623,593.26,592.64,0.2704696]
[1743420240033,1.22456623,593.26,592.65,0.2704696]
[1743420240333,1.22456623,593.26,592.66,0.2704696]
[1743420240529,0.864,593.25,592.67,0.2704696]
[1743420240835,0.864,593.25,592.68,0.2704696]
[1743420241031,0.864,593.25,592.69,0.27057191]
[1743420241335,0.864,593.25,592.7,0.27057191]
[1743420241534,0.864,593.25,592.63,0.27057191]
[1743420241733,1.22459011,593.24,592.63,0.27057191]
[1743420242436,0.864,593.25,592.63,0.27057191]
[1743420243338,1.49331799,593.24,592.63,0.27057191]
[1743420243646,1.49331799,593.23,592.63,0.27057191]
[1743420243838,3.88263564,593.22,592.63,0.27057191]
[1743420244034,1.49331799,593.21,592.63,0.27057191]
[1743420244338,1.49331799,593.2,592.63,0.27057191]
[1743420244537,3.88294033,593.19,592.63,0.27057191]
[1743420244737,1.49331799,593.18,592.63,0.27057191]
[1743420244937,1.49331799,593.17,592.63,0.27057191]
[1743420245138,1.49331799,593.16,592.63,0.27057191]
[1743420245333,2.71907471,593.15,592.63,0.27057191]
[1743420245538,1.49331799,593.14,592.63,0.27057191]
[1743420245739,2.71907471,593.13,592.63,0.27057191]
[1743420245937,1.49331799,593.12,592.63,0.27057191]
[1743420246238,1.22575672,593.11,592.64,0.2707559]
[1743420246438,1.22575672,593.11,592.63,0.2707559]
[1743420246634,1.22575672,593.11,592.64,0.2707559]
[1743420246842,1.22575672,593.1,592.63,0.2707559]
[1743420247237,1.22575672,593.09,592.63,0.2707559]
[1743420247745,1.22575672,593.08,592.63,0.2707559]
[1743420248242,0.864,593.25,592.63,0.2707559]
[1743420248440,4.79244626,593.24,592.63,0.2707559]
[1743420248737,1.49343769,593.23,592.63,0.2707559]
[1743420248935,1.4933,593.22,592.63,0.2707559]
[1743420249140,1.4933,593.21,592.63,0.2707559]
[1743420249437,1.4933,593.2,592.62,0.33748439]
[1743420249741,4.68058997,593.19,592.63,0.27069231]
[1743420249941,1.4933,593.18,592.63,0.27069231]
[1743420250141,1.4933,593.17,592.63,0.27069231]
[1743420250441,1.4933,593.16,592.63,0.27069231]
[1743420250635,1.4933,593.15,592.63,0.27069231]
[1743420250838,1.22573841,593.14,592.63,0.27069231]
[1743420251734,1.22573841,593.13,592.63,0.27069231]
[1743420252543,0.864,593.25,592.63,0.27069231]
[1743420252737,1.49375179,593.24,592.63,0.27069231]
[1743420252942,1.49375179,593.23,592.63,0.27069231]
[1743420253242,1.49375179,593.23,592.62,0.33748439]
[1743420253243,1.22610237,593.23,592.64,0.27056349]
[1743420253443,1.22610237,593.23,592.63,0.27056349]
[1743420253640,1.22610237,593.23,592.64,0.27056349]
[1743420253841,1.22610237,593.22,592.63,0.27056349]
[1743420254042,1.22610237,593.22,592.64,0.27056349]
[1743420254237,0.864,593.25,592.63,0.27056349]
[1743420254839,1.22650173,593.24,592.63,0.27056349]
[1743420255641,1.22650173,593.23,592.63,0.27056349]
[1743420256038,1.49459098,593.22,592.63,0.27056349]
[1743420256239,1.49459098,593.21,592.63,0.27056349]
[1743420256439,1.49459098,593.2,592.63,0.27056349]
[1743420256743,1.49459098,593.19,592.63,0.27056349]
[1743420256944,1.49459098,593.18,592.63,0.27056349]
[1743420257244,2.72170733,593.17,592.63,0.27056349]
[1743420257444,1.22711635,593.17,592.63,0.27056349]
[1743420257937,1.22711635,593.16,592.63,0.27056349]
[1743420258338,0.989,593.15,592.63,0.27056349]
[1743420258641,2.21611635,593.15,592.63,0.27056349]
[1743420258945,0.989,593.15,592.63,0.27056349]
[1743420261944,0.989,593.15,592.62,0.33748439]
[1743420262143,0.989,593.15,592.63,0.27060063]
[1743420265648,0.989,593.15,592.64,0.27063588]
[1743420265843,0.989,593.15,592.65,0.27064325]
[1743420266047,0.989,593.15,592.63,0.27064325]
[1743420266248,0.989,593.15,592.64,0.27064325]
[1743420266444,0.989,593.15,592.63,0.27064325]
[1743420266646,0.989,593.15,592.64,0.27064325]
[1743420266846,0.989,593.15,592.65,0.27064325]
[1743420267045,0.989,593.15,592.66,0.27064325]
[1743420267241,0.989,593.15,592.67,0.27064664]
[1743420267442,0.989,593.15,592.68,0.27064664]
[1743420267644,0.989,593.15,592.63,0.27064664]
[1743420267844,0.989,593.15,592.62,0.33748439]
[1743420267845,0.989,593.15,592.64,0.27064664]
[1743420268047,0.989,593.15,592.63,0.27064664]
[1743420272051,0.651,593.14,592.63,0.27064664]
[1743420273846,0.651,593.14,592.63,0.26577113]
[1743420276147,1.23529902,593.13,592.64,0.27082845]
[1743420276353,1.23529902,593.13,592.65,0.27082845]
[1743420276548,1.23529902,593.13,592.66,0.27082845]
[1743420276747,0.651,593.14,592.62,0.33748439]
[1743420276748,0.651,593.14,592.67,0.27082845]
[1743420276946,0.651,593.14,592.68,0.27082845]
[1743420277148,1.50511837,593.13,592.69,0.27082845]
[1743420277348,0.651,593.14,592.7,0.27082845]
[1743420277554,0.651,593.14,592.63,0.27082845]
[1743420277773,0.651,593.14,592.64,0.27082845]
[1743420277952,0.651,593.14,592.63,0.27082845]